bitfinex/quotes_BTCUSD_20230117
["timestamp","ask_amount","ask_price","bid_price","bid_amount"]
[1673989556547,0.73923304,21337.0,21331.0,0.95116088]
[1673989556825,0.73923304,21336.0,21331.0,1.53178178]
[1673989557056,0.937392,21336.0,21331.0,1.10478178]
[1673989557309,0.320692,21335.0,21331.0,1.10578978]
[1673989557528,1.35595204,21336.0,21331.0,0.99296088]
[1673989557794,0.937411,21336.0,21331.0,1.10578978]
[1673989558051,0.937411,21336.0,21331.0,1.10478978]
[1673989558324,0.076,21335.0,21331.0,0.63698978]
[1673989558580,0.076,21335.0,21331.0,0.0070508]
[1673989558863,0.320692,21334.0,21331.0,0.0080508]
[1673989559109,1.258206,21333.0,21331.0,0.0080508]
[1673989559372,0.320692,21332.0,21331.0,0.0080508]
[1673989559626,0.789471,21332.0,21331.0,0.0080508]
[1673989560161,0.789471,21332.0,21331.0,0.0070508]
[1673989560427,0.865471,21332.0,21331.0,0.0080508]
[1673989560962,0.789471,21332.0,21331.0,0.0070508]
[1673989561492,1.25825,21332.0,21331.0,0.0070508]
[1673989561740,1.33425,21332.0,21331.0,0.0080508]
[1673989562038,1.25825,21332.0,21331.0,0.0070508]
[1673989562509,0.937558,21332.0,21331.0,0.0070508]
[1673989563017,1.25325,21332.0,21331.0,0.0070508]
[1673989563540,1.32925,21332.0,21331.0,0.0080508]
[1673989563765,1.25325,21332.0,21331.0,0.0070508]
[1673989563990,1.32925,21332.0,21331.0,0.0080508]
[1673989564509,1.32925,21332.0,21331.0,0.0070508]
[1673989564510,0.932558,21332.0,21331.0,0.0070508]
[1673989564779,0.932558,21332.0,21331.0,0.0080508]
[1673989564780,1.32925,21332.0,21331.0,0.0080508]
[1673989565038,1.25325,21332.0,21331.0,0.0070508]
[1673989565287,1.32925,21332.0,21331.0,0.0080508]
[1673989566561,2.25580378,21332.0,21331.0,0.0080508]
[1673989566812,2.62840378,21332.0,21331.0,0.0070508]
[1673989567070,2.70440378,21332.0,21331.0,0.0080508]
[1673989567333,2.70440378,21332.0,21331.0,5.08e-05]
[1673989567334,2.85440378,21332.0,21331.0,5.08e-05]
[1673989567608,0.15,21331.0,21323.0,0.00351737]
[1673989567866,2.93040378,21332.0,21324.0,0.90123084]
[1673989567867,0.468854,21329.0,21324.0,0.90123084]
[1673989568132,0.468816,21331.0,21325.0,0.0739]
[1673989568499,0.00097481,21329.0,21326.0,1.258484]
[1673989568654,0.93763,21331.0,21326.0,0.937792]
[1673989568903,0.93858243,21331.0,21326.0,0.937792]
[1673989569700,0.93858243,21331.0,21327.0,0.0739]
[1673989569959,0.93858243,21331.0,21327.0,0.542783]
[1673989570794,1.01458243,21331.0,21327.0,0.542783]
[1673989571080,1.43312347,21331.0,21327.0,0.001]
[1673989571337,0.320692,21330.0,21327.0,0.001]
[1673989571589,1.258382,21329.0,21327.0,0.001]
[1673989571848,0.320692,21328.0,21327.0,0.001]
[1673989572098,0.789559,21328.0,21327.0,0.001]
[1673989572374,0.468867,21328.0,21326.0,0.44366292]
[1673989572648,0.937734,21328.0,21323.0,0.54627837]
[1673989572907,0.320692,21327.0,21323.0,0.00351737]
[1673989573177,1.258522,21326.0,21323.0,0.00351737]
[1673989573446,0.93783,21326.0,21323.0,0.00351737]
[1673989573675,0.320692,21325.0,21323.0,0.00351737]
[1673989573932,0.320692,21324.0,21323.0,0.00351737]
[1673989574191,0.937881,21325.0,21323.0,0.01851737]
[1673989574458,0.937881,21325.0,21323.0,0.00351737]
[1673989574718,0.476934,21325.0,21323.0,0.38458405]
[1673989575015,0.468905,21327.0,21323.0,0.94146537]
[1673989575269,0.076,21325.0,21324.0,0.320692]
[1673989575534,0.076,21325.0,21323.0,0.47349437]
[1673989576071,0.468901,21327.0,21323.0,0.47249437]
[1673989576568,0.544901,21327.0,21323.0,0.47349437]
[1673989576578,0.93779,21327.0,21323.0,0.47249437]
[1673989576841,0.076,21325.0,21323.0,0.00351737]
[1673989577099,0.468938,21325.0,21323.0,0.00351737]
[1673989577622,0.937871,21325.0,21323.0,0.00351737]
[1673989577884,0.8493492,21324.0,21323.0,0.00451737]
[1673989578142,2.20580024,21324.0,21323.0,0.00351737]
[1673989578446,1.7872592,21324.0,21323.0,0.00451737]
[1673989578707,2.20580024,21324.0,21323.0,0.00451737]
[1673989578961,2.20580024,21324.0,21323.0,0.00351737]
[1673989579207,2.20580024,21324.0,21323.0,0.00451737]
[1673989579459,1.7872592,21324.0,21323.0,0.00351737]
[1673989579735,1.7872592,21324.0,21323.0,0.00451737]
[1673989579736,2.28180024,21324.0,21323.0,0.00451737]
[1673989579986,1.8632592,21324.0,21323.0,0.00451737]
[1673989580761,0.076,21324.0,21323.0,0.00451737]
[1673989582292,1.74716247,21327.0,21323.0,0.00351737]
[1673989582530,0.064,21324.0,21323.0,0.00351737]
[1673989583032,0.128,21324.0,21323.0,0.00651737]
[1673989583290,1.27827547,21327.0,21323.0,0.00351737]
[1673989583543,0.92373443,21327.0,21323.0,0.00651737]
[1673989583792,0.92373443,21327.0,21323.0,0.00351737]
[1673989583793,1.32862343,21327.0,21323.0,0.00351737]
[1673989584102,0.064,21324.0,21323.0,0.00651737]
[1673989585076,0.468911,21326.0,21323.0,0.00351737]
[1673989585327,0.468911,21326.0,21323.0,0.00551737]
[1673989585595,0.468911,21326.0,21323.0,0.00351737]
[1673989585854,0.07,21324.0,21323.0,0.00551737]
[1673989586141,0.468911,21326.0,21323.0,0.00351737]
[1673989586359,0.538911,21326.0,21323.0,0.00551737]
[1673989587149,1.007822,21326.0,21323.0,0.00551737]
[1673989587430,0.538911,21326.0,21323.0,0.00551737]
[1673989588453,0.07,21326.0,21323.0,0.94346337]
[1673989588709,0.07,21326.0,21324.0,0.7167509]
[1673989588999,0.07,21326.0,21325.0,0.284063]
[1673989589254,0.07,21326.0,21323.0,0.00551737]
[1673989589507,0.74518099,21325.0,21323.0,0.00551737]
[1673989589783,0.320692,21324.0,21323.0,0.00551737]
[1673989590056,0.78952964,21324.0,21323.0,0.00351737]
[1673989590302,0.320794,21324.0,21323.0,0.00351737]
[1673989590578,1.36238799,21325.0,21323.0,0.00351737]
[1673989590830,1.36238299,21325.0,21323.0,0.00351737]
[1673989591086,0.468945,21325.0,21323.0,0.00351737]
[1673989591344,0.557945,21325.0,21323.0,0.00351737]
[1673989593663,1.026878,21325.0,21323.0,0.00351737]
[1673989593941,0.320794,21324.0,21323.0,0.00351737]
[1673989594476,1.258704,21324.0,21323.0,0.00351737]
[1673989595240,0.93791,21324.0,21323.0,0.00351737]
[1673989595495,1.02691,21324.0,21323.0,0.00351737]
[1673989595785,1.347704,21324.0,21323.0,0.00351737]
[1673989596004,0.557955,21324.0,21323.0,0.00351737]
[1673989596767,0.878749,21324.0,21323.0,0.00351737]
[1673989597053,1.347704,21324.0,21319.0,0.469049]
[1673989597283,0.089,21324.0,21319.0,0.69890134]
[1673989597533,0.089,21324.0,21320.0,0.0739]
[1673989597795,0.08999972,21324.0,21321.0,0.789813]
[1673989598038,0.08999972,21324.0,21321.0,0.469019]
[1673989598302,0.00099972,21324.0,21320.0,0.542935]
[1673989598555,0.00699972,21324.0,21320.0,0.542935]
[1673989598810,0.00699972,21324.0,21319.0,0.69889734]
[1673989598811,0.46995472,21324.0,21319.0,0.69889734]
[1673989599097,0.97645378,21324.0,21319.0,0.69889734]
[1673989599347,0.88845378,21324.0,21319.0,0.22985234]
[1673989599663,0.52083072,21323.0,21318.0,0.03364899]
[1673989599919,1.4068549,21323.0,21318.0,0.03364899]
[1673989600420,1.4068549,21323.0,21318.0,0.61455889]
[1673989600664,0.98982172,21323.0,21318.0,0.61455889]
[1673989600958,0.98982172,21323.0,21318.0,1.08364589]
[1673989600959,0.52083072,21323.0,21318.0,1.08364589]
[1673989601211,1.0258639,21323.0,21318.0,0.74761564]
[1673989602819,1.4948429,21323.0,21318.0,0.74761564]
[1673989603613,1.9638199,21323.0,21318.0,0.27852864]
[1673989604125,1.9638199,21323.0,21318.0,0.39035754]
[1673989604394,1.9638199,21323.0,21318.0,0.27852864]
[1673989604664,1.9638199,21323.0,21318.0,0.39035754]
[1673989604919,1.9638199,21323.0,21318.0,0.27852864]
[1673989605180,1.96264724,21323.0,21318.0,0.85944454]
[1673989605434,1.54678672,21323.0,21318.0,1.02718789]
[1673989605988,1.07780772,21323.0,21318.0,1.02718789]
[1673989606247,1.07780772,21323.0,21319.0,0.1118289]
[1673989606514,1.07780772,21323.0,21319.0,0.93811]
[1673989607067,1.07780772,21323.0,21319.0,1.0499389]
[1673989607324,1.07780772,21323.0,21319.0,0.93811]
[1673989607842,1.40566824,21323.0,21319.0,0.93811]
[1673989608108,1.07780772,21323.0,21319.0,0.93811]
[1673989609377,1.07780772,21323.0,21319.0,1.0499389]
[1673989609908,1.49366824,21323.0,21319.0,0.93811]
[1673989610162,1.07780772,21323.0,21319.0,0.93811]
[1673989611205,1.07780772,21323.0,21319.0,1.0499389]
[1673989613303,1.54678472,21323.0,21319.0,1.0499389]
[1673989614524,1.96264524,21323.0,21319.0,0.469048]
[1673989615301,1.54678472,21323.0,21319.0,0.5808769]
[1673989615579,1.96264524,21323.0,21319.0,0.469048]
[1673989616612,1.96264524,21323.0,21318.0,0.82304525]
[1673989616868,1.96264524,21323.0,21318.0,1.21771925]
[1673989617411,0.320794,21322.0,21318.0,1.21771925]
[1673989617640,0.320794,21322.0,21318.0,0.74864525]
[1673989617641,0.320794,21321.0,21318.0,0.74864525]
[1673989617930,1.35388852,21322.0,21318.0,0.5809019]
[1673989618606,0.006,21321.0,21318.0,0.5829019]
[1673989618863,0.469022,21321.0,21318.0,0.5809019]
[1673989619339,0.320794,21320.0,21317.0,0.9209526]
[1673989619595,0.320794,21319.0,21317.0,0.9209526]
[1673989619847,0.320794,21318.0,21317.0,0.9209526]
[1673989620106,1.44192652,21321.0,21317.0,1.16703763]
[1673989620358,0.97289352,21321.0,21317.0,0.9209526]
[1673989620617,0.88489352,21321.0,21317.0,0.75320925]
[1673989620883,0.97289352,21321.0,21317.0,1.22231825]
[1673989621164,0.320794,21320.0,21317.0,1.22231825]
[1673989621410,0.320794,21319.0,21317.0,0.9209526]
[1673989621670,0.320794,21318.0,21317.0,0.9209526]
[1673989621920,1.35392352,21321.0,21317.0,1.16775129]
[1673989622175,0.938063,21321.0,21317.0,0.9209526]
[1673989622436,0.320794,21320.0,21317.0,0.9209526]
[1673989622686,0.320794,21319.0,21317.0,0.75320925]
[1673989623034,0.353794,21318.0,21317.0,0.75320925]
[1673989623210,0.033,21318.0,21317.0,2.16010655]
[1673989623475,0.00096155,21322.0,21318.0,0.26393307]
[1673989623753,0.00096155,21322.0,21319.0,1.29303225]
[1673989624268,0.00096155,21322.0,21320.0,0.1123249]
[1673989624524,0.00096155,21322.0,21321.0,0.1868249]
[1673989624797,14.0,21325.0,21321.0,2.57142684]
[1673989625087,14.00099267,21325.0,21324.0,0.0739]
[1673989625345,14.00099267,21325.0,21324.0,1.19861711]
[1673989625606,14.0,21325.0,21324.0,1.19861711]
[1673989625867,14.0,21325.0,21324.0,1.49861711]
[1673989626134,14.019,21325.0,21324.0,1.50061711]
[1673989626648,14.019,21325.0,21324.0,1.36907778]
[1673989626971,14.019,21325.0,21324.0,1.50061711]
[1673989627236,14.0,21325.0,21324.0,1.49861711]
[1673989627502,14.005,21325.0,21324.0,2.59233858]
[1673989627800,14.0,21325.0,21324.0,2.55019633]
[1673989628065,14.005,21325.0,21324.0,2.59219633]
[1673989628871,14.005,21325.0,21324.0,1.66685739]
[1673989628872,14.0,21325.0,21324.0,1.66685739]
[1673989629137,14.0,21325.0,21324.0,1.08631]
[1673989629397,14.005,21325.0,21324.0,1.24152725]
[1673989629900,14.005,21325.0,21324.0,1.16762725]
[1673989630149,14.005,21325.0,21324.0,1.08691]
[1673989630427,14.005,21325.0,21324.0,1.71044567]
[1673989630685,14.0,21325.0,21324.0,1.49912725]
[1673989630945,14.005,21325.0,21324.0,1.95291384]
[1673989631197,14.0,21325.0,21324.0,2.32583868]
[1673989631453,14.005,21325.0,21324.0,2.36876803]
[1673989631737,14.0,21325.0,21324.0,1.91083937]
[1673989631959,14.005,21325.0,21324.0,2.42366939]
[1673989632212,14.0,21325.0,21324.0,2.65932663]
[1673989632479,14.0,21325.0,21324.0,2.43467683]
[1673989632729,14.0,21325.0,21324.0,2.58467683]
[1673989632981,14.0,21325.0,21324.0,2.53129503]
[1673989633313,14.0,21325.0,21324.0,2.80895227]
[1673989633497,14.0,21325.0,21324.0,2.53129503]
[1673989633751,14.004,21325.0,21324.0,3.06137065]
[1673989634286,14.0,21325.0,21324.0,3.01837065]
[1673989634811,14.005,21325.0,21324.0,3.06137065]
[1673989635751,14.005,21325.0,21324.0,3.22193662]
[1673989635976,14.005,21325.0,21324.0,3.22185693]
[1673989636186,14.005,21325.0,21324.0,3.33147324]
[1673989637071,14.005,21325.0,21324.0,3.053816]
[1673989637728,12.43576817,21325.0,21324.0,3.11264056]
[1673989637730,11.48655817,21325.0,21324.0,4.6693765]
[1673989638006,8.60044304,21325.0,21324.0,5.71152756]
[1673989638291,7.57165204,21325.0,21324.0,5.94471791]
[1673989638579,6.73985604,21325.0,21324.0,4.87842543]
[1673989638838,6.73985604,21325.0,21324.0,5.43619]
[1673989638839,5.96445904,21325.0,21324.0,5.43619]
[1673989639120,5.96445904,21325.0,21324.0,5.30747113]
[1673989639851,5.96445904,21325.0,21324.0,4.44705809]
[1673989639853,5.38584004,21325.0,21324.0,4.15108956]
[1673989640123,5.13831804,21325.0,21324.0,4.97532391]
[1673989640378,5.13831804,21325.0,21324.0,4.75432814]
[1673989640903,5.13831804,21325.0,21324.0,4.66632814]
[1673989641153,5.13831804,21325.0,21324.0,4.43313779]
[1673989641693,5.13831804,21325.0,21324.0,4.15108956]
[1673989641974,4.31292804,21325.0,21324.0,4.46119952]
[1673989642280,0.46290604,21325.0,21324.0,5.88836409]
[1673989642555,0.00096409,21330.0,21324.0,5.88836409]
[1673989642556,0.00096409,21330.0,21325.0,0.99516618]
[1673989642818,0.00096409,21330.0,21329.0,0.83415666]
[1673989643076,0.00772416,21332.0,21329.0,1.81859344]
[1673989643334,0.00772416,21332.0,21330.0,0.742491]
[1673989643650,0.00772416,21332.0,21331.0,2.26685]
[1673989643932,0.00772416,21332.0,21331.0,2.57535]
[1673989645029,0.00772416,21332.0,21331.0,2.72535]
[1673989645554,0.00772416,21332.0,21331.0,3.05341334]
[1673989645817,0.00653358,21332.0,21331.0,3.14141334]
[1673989646088,0.00653358,21332.0,21331.0,3.05341334]
[1673989646565,0.00653358,21332.0,21331.0,3.13291334]
[1673989646599,0.00653358,21332.0,21331.0,3.04491334]
[1673989646869,0.00653358,21332.0,21331.0,3.13291334]
[1673989647132,0.00653358,21332.0,21331.0,2.98291334]
[1673989647393,0.00653358,21332.0,21331.0,2.51784334]
[1673989647665,0.00653358,21332.0,21331.0,1.67434234]
[1673989648682,0.00653358,21332.0,21331.0,1.58634234]
[1673989649010,0.00653358,21332.0,21331.0,1.67434234]
[1673989649492,0.00653358,21332.0,21331.0,1.74884234]
[1673989650025,0.00653358,21332.0,21331.0,2.04884234]
[1673989653310,0.00653358,21332.0,21331.0,1.97434234]
[1673989653838,0.11617358,21332.0,21331.0,0.73674034]
[1673989654337,0.58495258,21332.0,21331.0,0.41606334]
[1673989654599,0.90574658,21332.0,21331.0,0.41606334]
[1673989654867,0.58495258,21332.0,21331.0,0.32806334]
[1673989655129,1.05473158,21332.0,21331.0,0.40306334]
[1673989655421,1.37452558,21332.0,21326.0,0.74023627]
[1673989655668,0.84820106,21331.0,21326.0,0.74023627]
[1673989655919,0.468832,21330.0,21326.0,0.74023627]
[1673989656741,0.468832,21330.0,21326.0,0.74623627]
[1673989656998,0.468832,21330.0,21326.0,0.74023627]
[1673989657296,0.468832,21330.0,21326.0,0.27134027]
[1673989657550,0.937655,21330.0,21326.0,0.27134027]
[1673989658108,0.945655,21330.0,21326.0,0.28234027]
[1673989658383,0.937655,21330.0,21326.0,0.27134027]
[1673989658644,0.945655,21330.0,21326.0,0.28234027]
[1673989658903,0.937655,21330.0,21326.0,0.27134027]
[1673989659159,0.945655,21330.0,21326.0,0.28234027]
[1673989660969,1.39906206,21330.0,21326.0,0.28234027]
[1673989661222,1.28302875,21329.0,21326.0,0.011]
[1673989661489,1.951895,21328.0,21326.0,0.011]
[1673989661759,0.320794,21327.0,21326.0,0.011]
[1673989662072,1.258572,21327.0,21326.0,0.011]
[1673989662614,1.71197906,21327.0,21325.0,0.33226618]
[1673989662872,1.39118506,21327.0,21326.0,0.011]
[1673989663136,1.71197906,21327.0,21325.0,0.33226618]
[1673989663440,0.654934,21326.0,21325.0,0.33226618]
[1673989663691,2.04616306,21326.0,21325.0,0.33226618]
[1673989664839,2.12716306,21326.0,21325.0,0.33326618]
[1673989666956,2.12716306,21326.0,21325.0,0.33226618]
[1673989666957,1.523756,21326.0,21325.0,0.33226618]
[1673989667212,1.442756,21326.0,21325.0,0.33326618]
[1673989667497,1.442756,21326.0,21325.0,0.33226618]
[1673989667498,1.523756,21326.0,21325.0,0.33226618]
[1673989667755,1.604756,21326.0,21325.0,0.33326618]
[1673989668014,1.442756,21326.0,21325.0,0.33226618]
[1673989668268,1.97716306,21326.0,21325.0,0.33326618]
[1673989668515,1.89616306,21326.0,21325.0,0.33226618]
[1673989668817,1.97716306,21326.0,21325.0,0.33326618]
[1673989669084,1.442756,21326.0,21325.0,0.33226618]
[1673989669334,1.523756,21326.0,21325.0,0.33326618]
[1673989670149,1.442756,21326.0,21325.0,0.33226618]
[1673989670414,1.523756,21326.0,21325.0,0.33326618]
[1673989670698,1.523756,21326.0,21325.0,0.33226618]
[1673989670952,1.604756,21326.0,21325.0,0.33326618]
[1673989671240,1.047462,21326.0,21325.0,0.33226618]
[1673989671527,1.128462,21326.0,21325.0,0.33326618]
[1673989671797,1.128462,21326.0,21325.0,0.33226618]
[1673989672071,1.128462,21326.0,21325.0,0.33326618]
[1673989672602,0.549911,21326.0,21325.0,0.33326618]
[1673989673394,0.081,21326.0,21325.0,0.33326618]
[1673989674131,0.081,21326.0,21325.0,0.65406018]
[1673989675254,0.081,21326.0,21325.0,1.12299318]
[1673989676978,0.081,21326.0,21325.0,1.42299318]
[1673989677223,0.081,21326.0,21325.0,1.89192618]
[1673989678511,0.081,21326.0,21325.0,2.22933968]
[1673989679275,0.00098062,21330.0,21325.0,2.22833968]
[1673989679525,0.014,21326.0,21325.0,1.90754568]
[1673989679781,0.014,21326.0,21325.0,2.22833968]
[1673989680040,0.007,21326.0,21325.0,2.24633968]
[1673989680314,0.00098062,21330.0,21325.0,2.22833968]
[1673989680545,0.00798062,21330.0,21326.0,0.58524817]
[1673989680799,0.00098062,21330.0,21327.0,1.258528]
[1673989681056,0.00098062,21330.0,21328.0,0.284003]
[1673989681313,0.00098062,21330.0,21327.0,0.937762]
[1673989681562,0.937624,21331.0,21327.0,0.937762]
[1673989681812,0.468812,21331.0,21327.0,0.937762]
[1673989682062,0.007,21330.0,21327.0,0.937762]
[1673989682285,0.85841346,21332.0,21327.0,0.937762]
[1673989682545,0.85841346,21332.0,21328.0,0.620794]
[1673989682803,0.00653358,21332.0,21329.0,1.221616]
[1673989683056,0.00653358,21332.0,21330.0,0.320762]
[1673989683310,0.00653358,21332.0,21329.0,0.937666]
[1673989683565,0.00653358,21332.0,21330.0,0.320794]
[1673989683819,0.00653358,21332.0,21329.0,0.937666]
[1673989684084,0.00653358,21332.0,21330.0,0.002]
[1673989684339,0.00653358,21332.0,21331.0,0.320794]
[1673989684340,0.07953358,21332.0,21331.0,0.320794]
[1673989684601,0.07953358,21332.0,21330.0,0.002]
[1673989685631,1.01709458,21332.0,21330.0,0.002]
[1673989690293,0.85368171,21331.0,21330.0,0.002]
[1673989690630,1.79128371,21331.0,21330.0,0.002]
[1673989691072,1.86578371,21331.0,21330.0,0.002]
[1673989691865,7.108e-05,21330.0,21326.0,0.00121717]
[1673989692142,0.1486,21327.0,21326.0,0.00121717]
[1673989692402,0.469394,21327.0,21326.0,0.00121717]
[1673989692665,1.876061,21327.0,21326.0,0.00121717]
[1673989692924,2.35898239,21327.0,21326.0,0.00121717]
[1673989693188,2.81238945,21327.0,21326.0,0.00121717]
[1673989693453,2.90238945,21327.0,21326.0,0.00121717]
[1673989693719,2.81238945,21327.0,21326.0,0.00121717]
[1673989693978,2.90238945,21327.0,21326.0,0.00121717]
[1673989696413,2.30038239,21327.0,21326.0,0.00121717]
[1673989696674,1.97958839,21327.0,21326.0,0.00121717]
[1673989696930,1.51063896,21327.0,21326.0,0.00121717]
[1673989697715,1.51063896,21327.0,21326.0,0.11008717]
[1673989697716,0.55882857,21327.0,21326.0,0.11008717]
[1673989697973,0.55882857,21327.0,21326.0,0.00110234]
[1673989702246,1.02771757,21327.0,21326.0,0.00110234]
[1673989702797,0.55882857,21327.0,21326.0,0.00110234]
[1673989704412,1.02771757,21327.0,21326.0,0.00110234]
[1673989705355,0.55882857,21327.0,21326.0,0.00110234]
[1673989706853,1.02771757,21327.0,21326.0,0.00110234]
[1673989707657,1.02771757,21327.0,21325.0,0.42836852]
[1673989707932,0.39116864,21326.0,21322.0,0.27939527]
[1673989708226,0.39116864,21326.0,21321.0,0.11175861]
[1673989708227,0.0745,21324.0,21321.0,0.11175861]
[1673989708495,1.406931,21323.0,21320.0,0.01180469]
[1673989708757,0.320794,21322.0,21320.0,0.01180469]
[1673989709038,0.789815,21321.0,21320.0,0.01180469]
[1673989709303,1.258836,21321.0,21320.0,0.01180469]
[1673989709831,1.258836,21321.0,21320.0,0.01280469]
[1673989710085,0.938042,21321.0,21320.0,0.01280469]
[1673989710384,1.258836,21321.0,21320.0,0.01280469]
[1673989710895,1.408836,21321.0,21320.0,0.01280469]
[1673989711420,1.408836,21321.0,21320.0,0.01180469]
[1673989711908,1.487836,21321.0,21320.0,0.01180469]
[1673989711909,1.337836,21321.0,21320.0,0.01180469]
[1673989712432,1.487836,21321.0,21320.0,0.01180469]
[1673989713231,1.337836,21321.0,21320.0,0.01180469]
[1673989715009,1.017042,21321.0,21320.0,0.01180469]
[1673989715572,1.337836,21321.0,21320.0,0.01180469]
[1673989715817,1.487836,21321.0,21320.0,0.01180469]
[1673989716585,1.337836,21321.0,21320.0,0.01180469]
[1673989717657,1.017042,21321.0,21320.0,0.01180469]
[1673989717941,1.337836,21321.0,21320.0,0.01180469]
[1673989719818,1.487836,21321.0,21320.0,0.01180469]
[1673989721156,1.337836,21321.0,21320.0,0.01180469]
[1673989729367,1.017042,21321.0,21320.0,0.12067469]
[1673989729632,1.017042,21321.0,21320.0,0.44146869]
[1673989729633,0.079,21321.0,21320.0,0.44146869]
[1673989730667,0.079,21321.0,21320.0,1.28501169]
[1673989730923,0.079,21321.0,21320.0,1.75405469]
[1673989731429,0.079,21321.0,21320.0,1.90405469]
[1673989731968,0.079,21321.0,21320.0,1.75405469]
[1673989733262,0.079,21321.0,21320.0,1.45405469]
[1673989733525,0.079,21321.0,21320.0,1.75405469]
[1673989734031,0.079,21321.0,21320.0,1.67955469]
[1673989734277,0.079,21321.0,21320.0,0.80164169]
[1673989735281,0.079,21321.0,21320.0,0.33259869]
[1673989735803,0.079,21321.0,21320.0,1.27068469]
[1673989736051,0.079,21321.0,21320.0,1.10164169]
[1673989736325,0.079,21321.0,21320.0,0.80164169]
[1673989737057,0.079,21321.0,21320.0,1.10164169]
[1673989738405,0.079,21321.0,21320.0,0.63259869]
[1673989738654,0.079,21321.0,21320.0,0.33259869]
[1673989738915,0.079,21321.0,21320.0,0.63259869]
[1673989739428,0.079,21321.0,21320.0,1.10164169]
[1673989739686,0.079,21321.0,21320.0,1.7565433]
[1673989739944,0.079,21321.0,21320.0,2.26613759]
[1673989740233,0.079,21321.0,21320.0,1.7565433]
[1673989740754,0.079,21321.0,21320.0,2.26612768]
[1673989741013,0.07110001,21321.0,21320.0,2.83245921]
[1673989741277,0.07110001,21321.0,21320.0,2.93957271]
[1673989741566,0.04522013,21321.0,21320.0,2.45277827]
[1673989742095,0.04522013,21321.0,21320.0,2.98762794]
[1673989742349,0.45115028,21328.0,21320.0,2.6523568]
[1673989742596,0.005,21321.0,21320.0,1.68649888]
[1673989742903,0.005,21321.0,21320.0,2.83928569]
[1673989743179,0.65556832,21329.0,21320.0,3.33413795]
[1673989743180,0.4521286,21329.0,21320.0,3.33413795]
[1673989743433,0.4521286,21329.0,21326.0,0.0744]
[1673989743434,0.00097832,21329.0,21326.0,0.0744]
[1673989743679,0.00097832,21329.0,21327.0,0.789566]
[1673989743927,0.00097832,21329.0,21328.0,0.284086]
[1673989744221,0.00884401,21330.0,21328.0,0.284086]
[1673989744482,0.00884401,21330.0,21327.0,0.468889]
[1673989744483,0.45695361,21330.0,21327.0,0.468889]
[1673989745246,0.051,21329.0,21328.0,0.324794]
[1673989745641,0.051,21329.0,21328.0,0.320794]
[1673989745864,0.00884401,21330.0,21328.0,1.164061]
[1673989746083,0.05984401,21330.0,21329.0,0.283938]
[1673989746513,0.05984401,21330.0,21328.0,0.0744]
[1673989746723,0.051,21329.0,21328.0,0.0784]
[1673989747208,0.051,21329.0,21328.0,0.399194]
[1673989747668,0.00884401,21330.0,21328.0,0.395194]
[1673989747894,0.05984401,21330.0,21329.0,0.287938]
[1673989748287,0.05984401,21330.0,21328.0,0.0744]
[1673989748288,0.00884401,21330.0,21328.0,0.0744]
[1673989748545,0.94649001,21330.0,21327.0,0.34552688]
[1673989748799,0.94749001,21330.0,21328.0,0.011]
[1673989749065,0.94649001,21330.0,21327.0,0.34552688]
[1673989749345,0.99749001,21330.0,21328.0,0.004]
[1673989749584,0.94649001,21330.0,21327.0,0.34552688]
[1673989750624,0.99749001,21330.0,21328.0,0.004]
[1673989750867,0.94649001,21330.0,21327.0,0.34552688]
[1673989751130,0.99749001,21330.0,21327.0,0.34952688]
[1673989752970,0.49085123,21329.0,21327.0,0.004]
[1673989753320,1.951295,21328.0,21327.0,0.004]
[1673989753744,2.40244528,21328.0,21322.0,0.26870615]
[1673989753999,0.15,21326.0,21322.0,0.26870615]
[1673989754255,1.258668,21325.0,21322.0,0.26870615]
[1673989754526,0.937874,21325.0,21322.0,0.26870615]
[1673989755030,0.468937,21325.0,21322.0,0.30970615]
[1673989755291,0.468937,21325.0,21322.0,0.26870615]
[1673989755559,0.473937,21325.0,21322.0,0.30970615]
[1673989756095,0.94287,21325.0,21322.0,0.041]
[1673989757390,0.93787,21325.0,21320.0,0.48083569]
[1673989757643,0.50354428,21324.0,21320.0,0.25035416]
[1673989757902,1.44148128,21324.0,21320.0,0.25035416]
[1673989758165,1.44148128,21324.0,21319.0,0.54285]
[1673989758445,1.89256274,21324.0,21319.0,0.54285]
[1673989758703,1.89256274,21324.0,21320.0,0.003]
[1673989758976,1.44148128,21324.0,21320.0,0.003]
[1673989759229,1.89256274,21324.0,21320.0,0.003]
[1673989759493,0.320794,21323.0,21320.0,0.003]
[1673989759764,1.727791,21322.0,21320.0,0.003]
[1673989760009,0.320794,21321.0,21320.0,0.003]
[1673989760271,1.258836,21321.0,21320.0,0.003]
[1673989760537,0.938042,21321.0,21317.0,0.01195243]
[1673989760791,0.320794,21320.0,21317.0,0.01195243]
[1673989761102,0.469065,21319.0,21317.0,0.01195243]
[1673989762041,0.469065,21319.0,21317.0,0.31195243]
[1673989762326,0.469059,21320.0,21318.0,0.320794]
[1673989762586,0.526059,21320.0,21317.0,0.31495243]
[1673989762847,1.43441575,21322.0,21318.0,1.011968]
[1673989763069,1.43441575,21322.0,21319.0,0.770794]
[1673989763070,0.4699848,21322.0,21319.0,0.770794]
[1673989763376,0.4699848,21322.0,21320.0,0.284217]
[1673989763638,0.0009818,21322.0,21321.0,0.320762]
[1673989763896,0.937978,21323.0,21319.0,0.919062]
[1673989764150,0.057,21322.0,21319.0,0.919062]
[1673989764407,0.937966,21323.0,21319.0,1.238127]
[1673989764968,1.34086355,21323.0,21319.0,0.469065]
[1673989765968,1.39786355,21323.0,21319.0,0.472065]
[1673989771387,1.39786355,21323.0,21319.0,0.003]
[1673989774136,1.84894501,21323.0,21319.0,0.003]
[1673989774385,0.15,21322.0,21319.0,0.003]
[1673989774646,1.258836,21321.0,21319.0,0.003]
[1673989774897,0.938042,21321.0,21319.0,0.003]
[1673989775155,0.320794,21320.0,21319.0,0.003]
[1673989775395,0.938086,21320.0,21317.0,0.30336811]
[1673989776201,0.938086,21320.0,21319.0,0.003]
[1673989776545,0.938086,21320.0,21317.0,0.30336811]
[1673989777402,0.995086,21320.0,21319.0,0.003]
[1673989778174,0.995086,21320.0,21317.0,0.30336811]
[1673989778422,0.995086,21320.0,21317.0,0.30636811]
[1673989778691,0.995086,21320.0,21317.0,0.30336811]
[1673989778692,0.938086,21320.0,21317.0,0.30336811]